fUSD/lending_fUSD_20250228
["ID","MTS","AMOUNT","RATE_DAILY","PERIOD"]
[354844857,1740731506956,-500.0,0.00056986,120]
[354844858,1740731506967,-500.0,0.00056986,120]
[354844859,1740731506977,-500.0,0.00056986,120]
[354844860,1740731506987,-572.81,0.00056986,120]
[354844861,1740731506997,-500.0,0.00056986,120]
[354844862,1740731507007,-500.0,0.00056986,120]
[354844863,1740731507018,-500.0,0.00056986,120]
[354844864,1740731507029,-500.0,0.00056986,120]
[354844865,1740731507039,-500.0,0.00056986,120]
[354844866,1740731507049,-500.0,0.00056986,120]
[354844867,1740731507060,-348.26,0.00056986,120]
[354844868,1740731507071,-500.0,0.00056986,120]
[354844869,1740731507080,-649.65,0.00056986,120]
[354844870,1740731507090,-500.0,0.00056986,120]
[354844871,1740731507100,-500.0,0.00056986,120]
[354844872,1740731507110,-500.0,0.00056986,120]
[354844873,1740731507123,-500.0,0.00056986,120]
[354844874,1740731507133,-209.66651987,0.00056986,120]
[354844875,1740731507143,-500.0,0.00056986,120]
[354844876,1740731507153,-500.0,0.00056986,120]
[354844877,1740731507164,-500.0,0.00056986,120]
[354844878,1740731507174,-500.0,0.00056986,120]
[354844879,1740731507183,-500.0,0.00056986,120]
[354844880,1740731507193,-500.0,0.00056986,120]
[354844881,1740731507204,-536.68,0.00056986,120]
[354844882,1740731507213,-500.0,0.00056986,120]
[354844883,1740731507224,-500.0,0.00056986,120]
[354844884,1740731507234,-500.0,0.00056986,120]
[354844885,1740731507244,-640.55,0.00056986,120]
[354844886,1740731507254,-500.0,0.00056986,120]
[354844887,1740731507263,-500.0,0.00056986,120]
[354844888,1740731507273,-500.0,0.00056986,120]
[354844889,1740731507283,-500.0,0.00056986,120]
[354844890,1740731507293,-161.9,0.00056986,120]
[354844891,1740731507302,-500.0,0.00056986,120]
[354844892,1740731507311,-500.0,0.00056986,120]
[354844893,1740731507320,-500.0,0.00056986,120]
[354844894,1740731507329,-545.24,0.00056986,120]
[354844895,1740731507339,-500.0,0.00056986,120]
[354844896,1740731507348,-500.0,0.00056986,120]
[354844897,1740731507358,-500.0,0.00056986,120]
[354844898,1740731507367,-500.0,0.00056986,120]
[354844899,1740731507379,-500.0,0.00056986,120]
[354844900,1740731507388,-500.0,0.00056986,120]
[354844901,1740731507399,-500.0,0.00056986,120]
[354844902,1740731507411,-1000.0,0.00056987,120]
[354844903,1740731507423,-362.0,0.0005699,120]
[354844904,1740731507432,-194.0,0.00057,120]
[354844905,1740731507442,-220.0,0.00057,120]
[354844906,1740731507453,-203.0,0.00057,120]
[354844907,1740731507463,-500000.0,0.00057,120]
[354844908,1740731507473,-1000000.0,0.00057,120]
[354844909,1740731507484,-278.47,0.00057,120]
[354844910,1740731507495,-11051.21,0.00057,120]
[354844911,1740731507505,-15000.0,0.00057,120]
[354844912,1740731507516,-15000.0,0.00057,120]
[354844913,1740731507526,-15000.0,0.00057,120]
[354844914,1740731507536,-4516.01,0.00057,120]
[354844915,1740731507545,-467.88,0.00057,120]
[354844916,1740731507556,-289.86,0.00057,120]
[354844917,1740731507568,-12500.0,0.00057,120]
[354844918,1740731507581,-15000.0,0.00057,120]
[354844919,1740731507590,-12500.0,0.00057,120]
[354844920,1740731507599,-6896.53,0.00057,120]
[354844921,1740731507610,-12500.0,0.00057,120]
[354844922,1740731507620,-1776.99,0.00057,120]
[354844923,1740731507631,-424.82,0.00057,120]
[354844924,1740731507642,-397.64,0.00057,120]
[354844925,1740731507652,-500.0,0.00057016,120]
[354844926,1740731507662,-600.0,0.00057016,120]
[354844927,1740731507672,-15000.0,0.0005703,120]
[354844928,1740731507682,-15000.0,0.0005703,120]
[354844929,1740731507692,-939.34,0.0005703,120]
[354844930,1740731507702,-3207.25,0.00057038,120]
[354844931,1740731507711,-4188.46,0.00057038,120]
[354844932,1740731507722,-12500.0,0.00057038,120]
[354844933,1740731507732,-15000.0,0.0005706,120]
[354844934,1740731507741,-15000.0,0.0005706,120]
[354844935,1740731507751,-12500.0,0.00057075,120]
[354844936,1740731507760,-15000.0,0.0005709,120]
[354844937,1740731507769,-15000.0,0.0005709,120]
[354844938,1740731507779,-12500.0,0.00057113,120]
[354844939,1740731507788,-15000.0,0.0005712,120]
[354844940,1740731507797,-15000.0,0.0005712,120]
[354844941,1740731507806,-15000.0,0.0005715,120]
[354844942,1740731507815,-15000.0,0.0005715,120]
[354844943,1740731507825,-12500.0,0.0005715,120]
[354844944,1740731507835,-15000.0,0.0005718,120]
[354844945,1740731507843,-7171.34,0.0005718,120]
[354844946,1740731507853,-12500.0,0.00057188,120]
[354844947,1740731507862,-15000.0,0.0005721,120]
[354844948,1740731507872,-12500.0,0.00057225,120]
[354844949,1740731507883,-15000.0,0.0005724,120]
[354844950,1740731507893,-163.364151,0.0005726,120]
[354844951,1740731507902,-763.319646,0.0005726,120]
[354844952,1740731507911,-329.901669,0.0005726,120]
[354844953,1740731507920,-154.07419,0.0005726,120]
[354844954,1740731507930,-164.522552,0.0005726,120]
[354844955,1740731507940,-500.0,0.0005726,120]
[354844956,1740731507949,-500.0,0.0005726,120]
[354844957,1740731507958,-441.56847518,0.0005726,120]
[354844958,1740731507966,-500.0,0.0005726,120]
[354844959,1740731507975,-500.0,0.0005726,120]
[354844960,1740731507985,-896.23,0.0005726,120]
[354844961,1740731507995,-500.0,0.0005726,120]
[354844962,1740731508004,-218.48,0.0005726,120]
[354844963,1740731508015,-500.0,0.0005726,120]
[354844964,1740731508026,-500.0,0.0005726,120]
[354844965,1740731508036,-500.0,0.0005726,120]
[354844966,1740731508045,-500.0,0.0005726,120]
[354844967,1740731508056,-500.0,0.0005726,120]
[354844968,1740731508066,-161.21559731,0.0005726,120]
[354844969,1740731508076,-500.0,0.0005726,120]
[354844970,1740731508086,-500.0,0.0005726,120]
[354844971,1740731508096,-500.0,0.0005726,120]
[354844972,1740731508106,-500.0,0.0005726,120]
[354844973,1740731508116,-500.0,0.0005726,120]
[354844974,1740731508129,-500.0,0.0005726,120]
[354844975,1740731508141,-4503.47,0.0005726,120]
[354844976,1740731508151,-500.0,0.0005726,120]
[354844977,1740731508161,-310.91126208,0.0005726,120]
[354844978,1740731508174,-218.75,0.0005726,120]
[354844979,1740731508185,-500.0,0.0005726,120]
[354844980,1740731508196,-513.19,0.0005726,120]
[354844981,1740731508207,-500.0,0.0005726,120]
[354844982,1740731508217,-500.0,0.0005726,120]
[354844983,1740731508231,-500.0,0.0005726,120]
[354844984,1740731508241,-500.0,0.0005726,120]
[354844985,1740731508254,-500.0,0.0005726,120]
[354844986,1740731508264,-500.0,0.0005726,120]
[354844987,1740731508274,-500.0,0.0005726,120]
[354844988,1740731508284,-500.0,0.0005726,120]
[354844989,1740731508295,-500.0,0.0005726,120]
[354844990,1740731508305,-500.0,0.0005726,120]
[354844991,1740731508315,-500.0,0.0005726,120]
[354844992,1740731508326,-500.0,0.0005726,120]
[354844993,1740731508336,-500.0,0.0005726,120]
[354844994,1740731508346,-535.88,0.0005726,120]
[354844995,1740731508356,-1043.53,0.0005726,120]
[354844996,1740731508365,-210.2,0.0005726,120]
[354844997,1740731508379,-500.0,0.0005726,120]
[354844998,1740731508389,-375.28,0.0005726,120]
[354844999,1740731508400,-500.0,0.0005726,120]
[354845000,1740731508411,-500.0,0.0005726,120]
[354845001,1740731508421,-500.0,0.0005726,120]
[354845002,1740731508430,-500.0,0.0005726,120]
[354845003,1740731508440,-500.0,0.0005726,120]
[354845004,1740731508450,-500.0,0.0005726,120]
[354845005,1740731508461,-187.24,0.0005726,120]
[354845006,1740731508472,-500.0,0.0005726,120]
[354845007,1740731508482,-500.0,0.0005726,120]
[354845008,1740731508493,-545.12,0.0005726,120]
[354845009,1740731508504,-500.0,0.0005726,120]
[354845010,1740731508514,-619.08,0.0005726,120]
[354845011,1740731508524,-500.0,0.0005726,120]
[354845012,1740731508533,-500.0,0.0005726,120]
[354845013,1740731508544,-2655.11,0.0005726,120]
[354845014,1740731508555,-500.0,0.0005726,120]
[354845015,1740731508570,-500.0,0.0005726,120]
[354845016,1740731508580,-171.63,0.0005726,30]
[354845017,1740731508590,-500.0,0.0005726,120]
[354845018,1740731508600,-1109.58,0.0005726,2]
[354845019,1740731508610,-500.0,0.0005726,120]
[354845020,1740731508620,-500.0,0.0005726,120]
[354845021,1740731508633,-500.0,0.0005726,120]
[354845022,1740731508644,-500.0,0.0005726,120]
[354845023,1740731508654,-372.02616276,0.0005726,120]
[354845024,1740731508665,-1179.36,0.0005726,120]
[354845025,1740731508676,-500.0,0.0005726,120]
[354845026,1740731508687,-723.95,0.0005726,120]
[354845027,1740731508699,-1630.06,0.0005726,120]
[354845028,1740731508709,-264.50314756,0.0005726,7]
[354845029,1740731508720,-624.22,0.0005726,120]
[354845030,1740731508730,-575.3,0.0005726,120]
[354845031,1740731508741,-500.0,0.0005726,120]
[354845032,1740731508751,-500.0,0.0005726,120]
[354845033,1740731508761,-547.63,0.0005726,120]
[354845034,1740731508772,-184.53971234,0.0005726,120]
[354845035,1740731508781,-500.0,0.0005726,120]
[354845036,1740731508792,-500.0,0.0005726,120]
[354845037,1740731508803,-500.0,0.0005726,120]
[354845038,1740731508814,-500.0,0.0005726,120]
[354845039,1740731508825,-500.0,0.0005726,120]
[354845040,1740731508961,-500.0,0.0005726,120]
[354845041,1740731508971,-500.0,0.0005726,120]
[354845042,1740731508980,-713.23,0.0005726,120]
[354845043,1740731508990,-500.0,0.0005726,120]
[354845044,1740731509001,-500.0,0.0005726,120]
[354845045,1740731509012,-500.0,0.0005726,120]
[354845046,1740731509022,-500.0,0.0005726,120]
[354845047,1740731509032,-500.0,0.0005726,120]
[354845048,1740731509042,-230.3,0.0005726,120]
[354845049,1740731509052,-658.85,0.0005726,120]
[354845050,1740731509063,-562.07,0.0005726,120]
[354845051,1740731509072,-500.0,0.0005726,120]
[354845052,1740731509082,-500.0,0.0005726,120]
[354845053,1740731509092,-879.15,0.0005726,120]
[354845054,1740731509103,-500.0,0.0005726,120]
[354845055,1740731509113,-500.0,0.0005726,120]
[354845056,1740731509123,-500.0,0.0005726,120]
[354845057,1740731509135,-500.0,0.0005726,120]
[354845058,1740731509144,-500.0,0.0005726,120]
[354845059,1740731509154,-500.0,0.0005726,120]
[354845060,1740731509163,-500.0,0.0005726,120]
[354845061,1740731509173,-500.0,0.0005726,120]
[354845062,1740731509182,-1739.54,0.0005726,120]
[354845063,1740731509192,-500.0,0.0005726,120]
[354845064,1740731509202,-500.0,0.0005726,120]
[354845065,1740731509212,-500.0,0.0005726,120]
[354845066,1740731509222,-269.75,0.0005726,120]
[354845067,1740731509231,-388.53,0.0005726,120]
[354845068,1740731509240,-500.0,0.0005726,120]
[354845069,1740731509250,-500.0,0.0005726,120]
[354845070,1740731509261,-500.0,0.0005726,120]
[354845071,1740731509271,-500.0,0.0005726,120]
[354845072,1740731509281,-500.0,0.0005726,120]
[354845073,1740731509293,-649.65,0.0005726,120]
[354845074,1740731509303,-500.0,0.0005726,120]
[354845075,1740731509315,-500.0,0.0005726,120]
[354845076,1740731509326,-500.0,0.0005726,120]
[354845077,1740731509337,-500.0,0.0005726,120]
[354845078,1740731509347,-500.0,0.0005726,120]
[354845079,1740731509358,-500.0,0.0005726,120]
[354845080,1740731509368,-500.0,0.0005726,120]
[354845081,1740731509379,-500.0,0.0005726,120]
[354845082,1740731509390,-500.0,0.0005726,120]
[354845083,1740731509400,-500.0,0.0005726,120]
[354845084,1740731509410,-536.68,0.0005726,120]
[354845085,1740731509421,-500.0,0.0005726,120]
[354845086,1740731509431,-500.0,0.0005726,120]
[354845087,1740731509442,-500.0,0.0005726,120]
[354845088,1740731509454,-640.55,0.0005726,120]
[354845089,1740731509464,-500.0,0.0005726,120]
[354845090,1740731509476,-500.0,0.0005726,120]
[354845091,1740731509488,-500.0,0.0005726,120]
[354845092,1740731509500,-500.0,0.0005726,120]
[354845093,1740731509510,-500.0,0.0005726,120]
[354845094,1740731509522,-500.0,0.0005726,120]
[354845095,1740731509532,-500.0,0.0005726,120]
[354845096,1740731509543,-545.24,0.0005726,120]
[354845097,1740731509554,-500.0,0.0005726,120]
[354845098,1740731509568,-500.0,0.0005726,120]
[354845099,1740731509578,-500.0,0.0005726,120]
[354845100,1740731509588,-500.0,0.0005726,120]
[354845101,1740731509599,-500.0,0.0005726,120]
[354845102,1740731509611,-500.0,0.0005726,120]
[354845103,1740731509622,-160.41,0.0005726,120]
[354845104,1740731509639,-12500.0,0.00057263,120]
[354845105,1740731509650,-15000.0,0.0005727,120]
[354845106,1740731509661,-15000.0,0.000573,120]
[354845107,1740731509671,-12500.0,0.000573,120]
[354845108,1740731509682,-150.0,0.00057305,120]
[354845109,1740731509691,-15000.0,0.0005733,120]
[354845110,1740731509702,-12500.0,0.00057338,120]
[354845111,1740731509712,-15000.0,0.0005736,120]
[354845112,1740731509723,-12500.0,0.00057375,120]
[354845113,1740731509733,-24499.7530206,0.00057383,14]
[354845114,1740731509743,-15000.0,0.0005739,120]
[354845115,1740731509753,-12500.0,0.00057413,120]
[354845116,1740731509763,-15000.0,0.0005742,120]
[354845117,1740731509773,-15000.0,0.0005745,120]
[354845118,1740731509783,-12500.0,0.0005745,120]
[354845119,1740731509794,-1021.8369727,0.00057461,2]
[354845120,1740731509804,-2168.2998151,0.00057461,2]
[354845121,1740731509814,-15000.0,0.0005748,120]
[354845122,1740731509824,-12500.0,0.00057488,120]
[354845123,1740731509834,-1000000.0,0.000575,120]
[354845124,1740731509844,-1000000.0,0.000575,120]
[354845125,1740731509854,-1000000.0,0.000575,120]
[354845126,1740731509864,-30772.86144801,0.000575,30]
[354845127,1740731509879,-151.0,0.00057507,120]
[354845128,1740731509889,-15000.0,0.0005751,120]
[354845129,1740731509899,-12500.0,0.00057525,120]
[354845130,1740731509909,-763.319646,0.00057534,120]
[354845131,1740731509918,-329.901669,0.00057534,120]
[354845132,1740731509928,-175.16694,0.00057534,120]
[354845133,1740731509937,-196.32369158,0.00057534,120]
[354845134,1740731509947,-500.0,0.00057534,120]
[354845135,1740731509956,-500.0,0.00057534,120]
[354845136,1740731509965,-500.0,0.00057534,120]
[354845137,1740731509975,-500.0,0.00057534,120]
[354845138,1740731509985,-369.99,0.00057534,120]
[354845139,1740731509994,-500.0,0.00057534,120]
[354845140,1740731510004,-500.0,0.00057534,120]
[354845141,1740731510013,-896.23,0.00057534,120]
[354845142,1740731510022,-500.0,0.00057534,120]
[354845143,1740731510032,-500.0,0.00057534,120]
[354845144,1740731510042,-500.0,0.00057534,120]
[354845145,1740731510052,-500.0,0.00057534,120]
[354845146,1740731510061,-500.0,0.00057534,120]
[354845147,1740731510071,-500.0,0.00057534,120]
[354845148,1740731510080,-500.0,0.00057534,120]
[354845149,1740731510090,-500.0,0.00057534,120]
[354845150,1740731510099,-500.0,0.00057534,120]
[354845151,1740731510110,-500.0,0.00057534,120]
[354845152,1740731510119,-500.0,0.00057534,120]
[354845153,1740731510131,-500.0,0.00057534,120]
[354845154,1740731510140,-4503.47,0.00057534,120]
[354845155,1740731510150,-500.0,0.00057534,120]
[354845156,1740731510160,-500.0,0.00057534,120]
[354845157,1740731510170,-500.0,0.00057534,120]
[354845158,1740731510179,-500.0,0.00057534,120]
[354845159,1740731510188,-500.0,0.00057534,120]
[354845160,1740731510198,-500.0,0.00057534,120]
[354845161,1740731510209,-500.0,0.00057534,120]
[354845162,1740731510219,-500.0,0.00057534,120]
[354845163,1740731510229,-500.0,0.00057534,120]
[354845164,1740731510240,-500.0,0.00057534,120]
[354845165,1740731510250,-500.0,0.00057534,120]
[354845166,1740731510260,-301.63710535,0.00057534,120]
[354845167,1740731510271,-500.0,0.00057534,120]
[354845168,1740731510281,-500.0,0.00057534,120]
[354845169,1740731510290,-500.0,0.00057534,120]
[354845170,1740731510299,-1043.53,0.00057534,120]
[354845171,1740731510309,-500.0,0.00057534,120]
[354845172,1740731510319,-500.0,0.00057534,120]
[354845173,1740731510330,-500.0,0.00057534,120]
[354845174,1740731510340,-510.43005,0.00057534,120]
[354845175,1740731510349,-500.0,0.00057534,120]
[354845176,1740731510359,-500.0,0.00057534,120]
[354845177,1740731510368,-500.0,0.00057534,120]
[354845178,1740731510378,-500.0,0.00057534,120]
[354845179,1740731510388,-500.0,0.00057534,120]
[354845180,1740731510397,-500.0,0.00057534,120]
[354845181,1740731510407,-248.19,0.00057534,120]
[354845182,1740731510417,-500.0,0.00057534,120]
[354845183,1740731510426,-2655.11,0.00057534,120]
[354845184,1740731510436,-500.0,0.00057534,120]
[354845185,1740731510446,-310.51913993,0.00057534,120]
[354845186,1740731510455,-500.0,0.00057534,120]
[354845187,1740731510464,-1109.58,0.00057534,2]
[354845188,1740731510473,-500.0,0.00057534,120]
[354845189,1740731510482,-500.0,0.00057534,120]
[354845190,1740731510491,-500.0,0.00057534,120]
[354845191,1740731510501,-500.0,0.00057534,120]
[354845192,1740731510511,-1179.36,0.00057534,120]
[354845193,1740731510521,-500.0,0.00057534,120]
[354845194,1740731510531,-723.95,0.00057534,120]
[354845195,1740731510541,-1630.06,0.00057534,120]
[354845196,1740731510550,-624.22,0.00057534,120]
[354845197,1740731510562,-500.0,0.00057534,120]
[354845198,1740731510572,-500.0,0.00057534,120]
[354845199,1740731510585,-547.63,0.00057534,120]
[354845200,1740731510595,-428.02138384,0.00057534,120]
[354845201,1740731510604,-500.0,0.00057534,120]
[354845202,1740731510615,-500.0,0.00057534,120]
[354845203,1740731510625,-500.0,0.00057534,120]
[354845204,1740731510636,-500.0,0.00057534,120]
[354845205,1740731510646,-500.0,0.00057534,120]
[354845206,1740731510655,-500.0,0.00057534,120]
[354845207,1740731510664,-713.23,0.00057534,120]
[354845208,1740731510674,-563.67,0.00057534,120]
[354845209,1740731510684,-500.0,0.00057534,120]
[354845210,1740731510694,-500.0,0.00057534,120]
[354845211,1740731510703,-500.0,0.00057534,120]
[354845212,1740731510712,-500.0,0.00057534,120]
[354845213,1740731510722,-658.85,0.00057534,120]
[354845214,1740731510731,-562.07,0.00057534,120]
[354845215,1740731510741,-450.25,0.00057534,120]
[354845216,1740731510750,-500.0,0.00057534,120]
[354845217,1740731510760,-879.15,0.00057534,120]
[354845218,1740731510770,-574.7,0.00057534,120]
[354845219,1740731510780,-500.0,0.00057534,120]
[354845220,1740731510789,-500.0,0.00057534,120]
[354845221,1740731510799,-500.0,0.00057534,120]
[354845222,1740731510810,-500.0,0.00057534,120]
[354845223,1740731510819,-500.0,0.00057534,120]
[354845224,1740731510828,-500.0,0.00057534,120]
[354845225,1740731510838,-500.0,0.00057534,120]
[354845226,1740731510847,-1739.54,0.00057534,120]
[354845227,1740731510856,-500.0,0.00057534,120]
[354845228,1740731510866,-394.84,0.00057534,120]
[354845229,1740731510875,-500.0,0.00057534,120]
[354845230,1740731510887,-500.0,0.00057534,120]
[354845231,1740731510897,-500.0,0.00057534,120]
[354845232,1740731510906,-500.0,0.00057534,120]
[354845233,1740731510916,-583.91,0.00057534,120]
[354845234,1740731510928,-500.0,0.00057534,120]
[354845235,1740731510938,-500.0,0.00057534,120]
[354845236,1740731510947,-500.0,0.00057534,120]
[354845237,1740731510957,-500.0,0.00057534,120]
[354845238,1740731510966,-500.0,0.00057534,120]
[354845239,1740731510975,-649.65,0.00057534,120]
[354845240,1740731510984,-500.0,0.00057534,120]
[354845241,1740731510994,-500.0,0.00057534,120]
[354845242,1740731511003,-500.0,0.00057534,120]
[354845243,1740731511012,-500.0,0.00057534,120]
[354845244,1740731511021,-500.0,0.00057534,120]
[354845245,1740731511031,-500.0,0.00057534,120]
[354845246,1740731511040,-500.0,0.00057534,120]
[354845247,1740731511049,-500.0,0.00057534,120]
[354845248,1740731511059,-330.62,0.00057534,120]
[354845249,1740731511068,-331.98,0.00057534,120]
[354845250,1740731511077,-536.68,0.00057534,120]
[354845251,1740731511087,-500.0,0.00057534,120]
[354845252,1740731511096,-500.0,0.00057534,120]
[354845253,1740731511106,-500.0,0.00057534,120]
[354845254,1740731511116,-640.55,0.00057534,120]
[354845255,1740731511125,-500.0,0.00057534,120]
[354845256,1740731511137,-500.0,0.00057534,120]
[354845257,1740731511147,-500.0,0.00057534,120]
[354845258,1740731511156,-500.0,0.00057534,120]
[354845259,1740731511166,-500.0,0.00057534,120]
[354845260,1740731511175,-500.0,0.00057534,120]
[354845261,1740731511186,-500.0,0.00057534,120]
[354845262,1740731511195,-545.24,0.00057534,120]
[354845263,1740731511205,-500.0,0.00057534,120]
[354845264,1740731511214,-500.0,0.00057534,120]
[354845265,1740731511224,-500.0,0.00057534,120]
[354845266,1740731511234,-500.0,0.00057534,120]
[354845267,1740731511243,-500.0,0.00057534,120]
[354845268,1740731511253,-500.0,0.00057534,120]
[354845269,1740731511263,-1042.06164123,0.00057534,120]
[354845270,1740731511272,-159.32,0.00057553,120]
[354845271,1740731511282,-12500.0,0.00057563,120]
[354845272,1740731511292,-500.0,0.00057564,120]
[354845273,1740731511302,-600.0,0.00057564,120]
[354845274,1740731511310,-500.0,0.00057564,120]
[354845275,1740731511320,-12500.0,0.000576,120]
[354845276,1740731511330,-209.28081741,0.000576,120]
[354845277,1740731511342,-150.0,0.000576,120]
[354845278,1740731511351,-150.0,0.000576,120]
[354845279,1740731511361,-150.0,0.000576,120]
[354845280,1740731511372,-150.0,0.000576,120]
[354845281,1740731511384,-150.0,0.000576,120]
[354845282,1740731511517,-12500.0,0.00057638,120]
[354845283,1740731511527,-209.28081741,0.00057665,120]
[354845284,1740731511537,-12500.0,0.00057675,120]
[354845285,1740731511547,-150.0,0.0005769,120]
[354845286,1740731511559,-9950.74,0.00057713,120]
[354845287,1740731511572,-209.28081741,0.00057729,120]
[354845288,1740731511583,-150.0,0.00057756,120]
[354845289,1740731511595,-1773.31891754,0.0005777,120]
[354845290,1740731511608,-150.0,0.0005778,120]
[354845291,1740731511618,-209.28081741,0.00057794,120]
[354845292,1740731511632,-763.319646,0.00057808,120]
[354845293,1740731511642,-329.901669,0.00057808,120]
[354845294,1740731511653,-500.0,0.00057808,120]
[354845295,1740731511663,-278.71,0.00057808,120]
[354845296,1740731511673,-500.0,0.00057808,120]
[354845297,1740731511683,-896.23,0.00057808,120]
[354845298,1740731511693,-500.0,0.00057808,120]
[354845299,1740731511703,-500.0,0.00057808,120]
[354845300,1740731511714,-500.0,0.00057808,120]
[354845301,1740731511724,-500.0,0.00057808,120]
[354845302,1740731511734,-590.99808896,0.00057808,120]
[354845303,1740731511743,-621.2,0.00057808,120]
[354845304,1740731511753,-500.0,0.00057808,120]
[354845305,1740731511764,-500.0,0.00057808,120]
[354845306,1740731511774,-500.0,0.00057808,120]
[354845307,1740731511783,-438.39,0.00057808,120]
[354845308,1740731511793,-500.0,0.00057808,120]
[354845309,1740731511803,-4503.47,0.00057808,120]
[354845310,1740731511813,-500.0,0.00057808,120]
[354845311,1740731511822,-500.0,0.00057808,120]
[354845312,1740731511832,-493.35,0.00057808,120]
[354845313,1740731511841,-603.75,0.00057808,120]
[354845314,1740731511851,-500.0,0.00057808,120]
[354845315,1740731511860,-500.0,0.00057808,120]
[354845316,1740731511870,-500.0,0.00057808,120]
[354845317,1740731511882,-500.0,0.00057808,120]
[354845318,1740731511891,-467.54,0.00057808,120]
[354845319,1740731511902,-500.0,0.00057808,120]
[354845320,1740731511911,-500.0,0.00057808,120]
[354845321,1740731511922,-500.0,0.00057808,120]
[354845322,1740731511931,-503.58,0.00057808,120]
[354845323,1740731511942,-500.0,0.00057808,120]
[354845324,1740731511952,-1043.53,0.00057808,120]
[354845325,1740731511961,-514.15373116,0.00057808,120]
[354845326,1740731511971,-500.0,0.00057808,120]
[354845327,1740731511981,-500.0,0.00057808,120]
[354845328,1740731511991,-500.0,0.00057808,120]
[354845329,1740731512000,-500.0,0.00057808,120]
[354845330,1740731512010,-500.0,0.00057808,120]
[354845331,1740731512021,-500.0,0.00057808,120]
[354845332,1740731512031,-500.0,0.00057808,120]
[354845333,1740731512041,-500.0,0.00057808,120]
[354845334,1740731512050,-500.0,0.00057808,120]
[354845335,1740731512059,-2655.11,0.00057808,120]
[354845336,1740731512068,-234.7,0.00057808,120]
[354845337,1740731512078,-500.0,0.00057808,120]
[354845338,1740731512087,-1109.58,0.00057808,2]
[354845339,1740731512096,-500.0,0.00057808,120]
[354845340,1740731512105,-500.0,0.00057808,120]
[354845341,1740731512115,-500.0,0.00057808,120]
[354845342,1740731512125,-500.0,0.00057808,120]
[354845343,1740731512137,-1179.36,0.00057808,120]
[354845344,1740731512147,-309.06,0.00057808,120]
[354845345,1740731512155,-723.95,0.00057808,120]
[354845346,1740731512165,-1630.06,0.00057808,120]
[354845347,1740731512175,-624.22,0.00057808,120]
[354845348,1740731512185,-500.0,0.00057808,120]
[354845349,1740731512195,-500.0,0.00057808,120]
[354845350,1740731512205,-547.63,0.00057808,120]
[354845351,1740731512214,-521.57,0.00057808,120]
[354845352,1740731512224,-500.0,0.00057808,120]
[354845353,1740731512233,-500.0,0.00057808,120]
[354845354,1740731512243,-500.0,0.00057808,120]
[354845355,1740731512253,-500.0,0.00057808,120]
[354845356,1740731512264,-500.0,0.00057808,120]